bitfinex/quotes_SOLUSD_20250401
["timestamp","ask_amount","ask_price","bid_price","bid_amount"]
[1743487686592,7.4926694,126.05,126.03,25.59181043]
[1743487688398,15.4260694,126.05,126.03,25.59181043]
[1743487690495,7.4626694,126.04,126.03,25.59181043]
[1743487691201,15.3965694,126.04,126.03,25.59181043]
[1743487693411,15.3965694,126.04,125.96,248.78]
[1743487693591,7.4626694,126.0,125.97,7.06432314]
[1743487693900,7.9339,126.04,125.97,7.06432314]
[1743487693901,7.4626694,126.01,125.99,0.28432314]
[1743487694205,7.4626694,126.02,125.99,0.28432314]
[1743487694693,7.4626694,126.01,125.99,0.28432314]
[1743487695203,15.3985694,126.01,125.99,0.28432314]
[1743487695382,15.3985694,126.01,126.0,25.59181043]
[1743487696209,15.3972694,126.03,126.01,18.79181043]
[1743487696609,15.3972694,126.03,126.01,0.14216157]
[1743487700217,7.9346,126.03,126.01,0.14216157]
[1743487700400,0.03,126.05,126.01,26.869772]
[1743487700602,20.03,126.05,126.01,26.869772]
[1743487700801,27.4926694,126.05,126.01,26.869772]
[1743487701097,0.03,126.04,126.01,18.933972]
[1743487701500,7.4926694,126.04,126.01,18.933972]
[1743487703103,15.4266694,126.04,126.01,18.933972]
[1743487705101,7.4626694,126.03,126.01,18.933972]
[1743487706015,15.4266694,126.04,126.01,18.933972]
[1743487710000,7.4626694,126.02,126.01,18.79181043]
[1743487711412,15.3978694,126.02,126.01,18.79181043]
[1743487712799,7.4626694,126.02,126.01,18.79181043]
[1743487714021,15.4275694,126.03,126.01,18.79181043]
[1743487718428,15.4275694,126.03,126.0,6.8]
[1743487718429,15.3978694,126.02,126.0,6.8]
[1743487718607,7.4626694,126.01,126.0,25.59181043]
[1743487720917,15.3978694,126.02,126.0,25.55181043]
[1743487721128,7.9352,126.02,126.0,25.55181043]
[1743487721328,7.9352,126.02,126.01,18.79181043]
[1743487721517,7.4926694,126.03,126.01,18.79181043]
[1743487722424,7.4926694,126.03,126.01,0.14216157]
[1743487727128,7.4926694,126.03,126.01,0.28432314]
[1743487727332,0.03,126.03,126.01,28.22002314]
[1743487728340,0.03,126.03,126.01,20.28432314]
[1743487728831,0.03,126.03,126.01,28.22012314]
[1743487730457,0.03,126.03,126.02,18.79181043]
[1743487730751,0.03,126.03,126.02,18.933972]
[1743487732842,0.03,126.03,126.02,26.869172]
[1743487734343,0.03,126.09,126.08,38.933972]
[1743487734521,0.03,126.09,126.08,45.793972]
[1743487736439,7.4926694,126.09,126.08,45.65181043]
[1743487737134,7.4926694,126.09,126.07,18.79181043]
[1743487737333,7.4926694,126.09,126.08,6.86]
[1743487738554,0.03,126.09,126.08,7.00216157]
[1743487739041,0.03,126.09,126.08,27.14432314]
[1743487740045,7.4926694,126.09,126.08,7.00216157]
[1743487741142,7.4926694,126.09,126.08,6.86]
[1743487741528,15.4234694,126.09,126.08,6.86]
[1743487744345,15.4234694,126.09,126.07,18.64964886]
[1743487744554,15.4234694,126.09,126.08,6.86]
[1743487746541,15.4234694,126.09,126.07,6.84]
[1743487746730,7.4626694,126.08,126.07,6.84]
[1743487748155,15.3940694,126.08,126.07,6.84]
[1743487753149,7.4626694,126.08,126.07,6.84]
[1743487753658,7.4626694,126.08,126.07,25.63181043]
[1743487756054,15.3940694,126.08,126.07,6.84]
[1743487756252,15.3940694,126.08,126.04,0.14216157]
[1743487756456,7.4626694,126.05,126.04,0.14216157]
[1743487756768,7.4626694,126.05,126.04,25.65181043]
[1743487756954,7.4626694,126.05,126.01,228.78]
[1743487757159,29.8506776,126.06,126.01,247.713972]
[1743487757160,7.4626694,126.02,126.01,247.713972]
[1743487757452,7.4626694,126.02,126.01,235.64]
[1743487757758,15.3978694,126.02,126.01,6.86]
[1743487760260,7.4626694,126.02,126.01,6.86]
[1743487760653,15.3978694,126.02,126.01,6.86]
[1743487763866,7.4626694,126.02,126.01,6.86]
[1743487767074,15.3978694,126.02,126.01,6.86]
[1743487772175,15.3978694,126.02,126.01,6.923]
[1743487779774,7.4626694,126.02,126.01,6.923]
[1743487782185,7.4626694,126.02,126.01,6.883]
[1743487782580,15.3978694,126.02,126.01,6.883]
[1743487783883,7.4626694,126.02,126.01,6.883]
[1743487784760,7.4626694,126.02,126.01,25.816972]
[1743487784969,7.4626694,126.03,126.02,18.79181043]
[1743487785697,15.3972694,126.03,126.01,6.883]
[1743487786010,7.4626694,126.02,126.01,7.02516157]
[1743487788780,15.3978694,126.02,126.01,7.02516157]
[1743487788985,15.3978694,126.02,126.01,6.883]
[1743487800206,7.4626694,126.02,126.01,25.67481043]
[1743487800393,15.3968694,126.04,126.02,0.14216157]
[1743487800710,7.4626694,126.04,126.02,18.79181043]
[1743487800912,15.3962694,126.05,126.02,0.28432314]
[1743487801409,7.4626694,126.05,126.02,0.28432314]
[1743487801717,7.4626694,126.04,126.02,0.28432314]
[1743487802705,7.4626694,126.03,126.02,0.28432314]
[1743487803089,7.4626694,126.03,126.02,6.8]
[1743487804312,15.3972694,126.03,126.02,6.8]
[1743487804904,15.3972694,126.03,126.02,6.82]
[1743487805596,15.3972694,126.03,126.01,0.09775167]
[1743487805797,7.4626694,126.02,126.01,0.09775167]
[1743487806609,15.3978694,126.02,126.01,0.09775167]
[1743487808318,7.4626694,126.02,126.01,0.09775167]
[1743487816528,15.3978694,126.02,126.01,0.09775167]
[1743487816736,7.4626694,126.02,126.01,0.09775167]
[1743487818508,29.8806776,126.06,126.01,18.8895621]
[1743487818707,29.8806776,126.06,126.02,0.14216157]
[1743487818708,0.03,126.06,126.02,0.14216157]
[1743487819020,0.03,126.06,126.05,18.933972]
[1743487819325,0.03,126.06,126.05,25.753972]
[1743487819708,0.03,126.06,126.05,33.470772]
[1743487820620,7.4926694,126.06,126.05,33.32861043]
[1743487820923,37.343347,126.06,126.05,6.82]
[1743487822718,45.276047,126.06,126.05,6.82]
[1743487825138,45.276047,126.06,126.03,6.82]
[1743487825139,65.107847,126.06,126.03,6.82]
[1743487825427,7.4626694,126.04,126.03,6.82]
[1743487825811,7.4626694,126.04,126.02,6.82]
[1743487826012,27.4626694,126.03,126.02,6.82]
[1743487827026,35.3972694,126.03,126.02,6.82]
[1743487827827,35.3972694,126.03,126.01,0.09775167]
[1743487828011,7.4626694,126.02,126.01,0.09775167]
[1743487830909,7.4626694,126.02,126.01,0.23991324]
[1743487831406,27.4626694,126.03,126.01,8.17571324]
[1743487831606,27.4626694,126.03,126.02,0.14216157]
[1743487831831,7.4626694,126.03,126.02,0.14216157]
[1743487833840,15.3974694,126.03,126.01,0.09775167]
[1743487834026,7.4626694,126.02,126.01,0.063]
[1743487834340,37.313347,126.02,126.01,0.063]
[1743487834542,7.4626694,126.02,126.01,0.063]
[1743487835245,15.3978694,126.02,126.01,0.063]
[1743487844551,7.4626694,126.02,126.01,0.063]
[1743487848219,15.3978694,126.02,126.01,0.063]
[1743487848433,20.0,126.0,125.99,0.063]
[1743487848640,27.4626694,126.0,125.97,18.79181043]
[1743487848841,27.4626694,126.0,125.96,25.46964886]
[1743487849629,7.9371,125.99,125.96,25.46964886]
[1743487855246,7.9371,125.99,125.97,6.82]
[1743487857353,7.4626694,125.98,125.97,6.82]
[1743487860251,7.4626694,125.98,125.96,18.71264886]
[1743487860463,57.7874776,126.0,125.97,6.8]
[1743487860639,7.4626694,125.98,125.97,6.8]
[1743487863953,15.36561773,125.98,125.97,6.8]
[1743487866665,7.42791773,125.98,125.97,6.8]
[1743487866843,7.42791773,125.98,125.97,25.59181043]
[1743487867044,7.42791773,125.98,125.97,25.65481043]
[1743487870161,15.36561773,125.98,125.97,25.65481043]
[1743487870755,15.36561773,125.98,125.97,6.863]
[1743487871154,15.36561773,125.98,125.97,0.063]
[1743487875569,49.8506776,126.0,125.97,18.85481043]
[1743487875775,7.4626694,125.98,125.97,25.65481043]
[1743487883682,7.4626694,125.98,125.97,33.59311043]
[1743487883916,7.4626694,125.98,125.97,33.735272]
[1743487886066,7.4626694,125.98,125.97,6.863]
[1743487886269,15.4003694,125.98,125.97,6.863]
[1743487886786,15.4003694,125.98,125.97,0.063]
[1743487892565,15.4303694,125.98,125.96,0.063]
[1743487892785,7.4626694,125.97,125.96,0.063]
[1743487894693,15.4009694,125.97,125.96,0.063]
[1743487895689,7.4626694,125.97,125.96,0.063]
[1743487895993,7.4626694,125.97,125.94,6.8]
[1743487896290,37.313347,125.95,125.94,6.8]
[1743487896675,45.252947,125.95,125.94,6.8]
[1743487897288,45.252947,125.95,125.93,0.063]
[1743487897476,37.313347,125.94,125.93,0.063]
[1743487899296,45.253547,125.94,125.93,0.063]
[1743487899791,45.253547,125.94,125.93,6.843]
[1743487901597,20.0,125.92,125.91,6.78]
[1743487901808,20.0,125.92,125.9,18.71264886]
[1743487901809,27.4626694,125.92,125.9,0.063]
[1743487901996,7.4626694,125.91,125.9,6.843]
[1743487903406,7.4626694,125.91,125.9,0.063]
[1743487903878,15.4047694,125.91,125.9,0.063]
[1743487904797,7.4626694,125.91,125.9,0.063]
[1743487905174,20.0,125.89,125.88,0.063]
[1743487905493,57.313347,125.89,125.88,0.063]
[1743487906082,65.256747,125.89,125.88,0.063]
[1743487906412,65.256747,125.89,125.86,6.863]
[1743487906593,7.4626694,125.87,125.86,6.863]
[1743487907482,7.4626694,125.87,125.86,0.063]
[1743487909785,15.4073694,125.87,125.86,0.063]
[1743487911604,7.4626694,125.87,125.86,0.063]
[1743487912905,15.4073694,125.87,125.86,0.063]
[1743487914698,15.4073694,125.87,125.85,0.063]
[1743487915005,20.0,125.85,125.84,0.063]
[1743487915304,27.4626694,125.85,125.84,0.063]
[1743487915506,35.4085694,125.85,125.84,0.063]
[1743487927140,35.4085694,125.85,125.83,0.063]
[1743487927296,7.4626694,125.84,125.83,0.063]
[1743487929524,15.4091694,125.84,125.83,0.063]
[1743487932429,7.4626694,125.84,125.83,0.063]
[1743487938847,15.4091694,125.84,125.83,0.063]
[1743487951665,15.4391694,125.84,125.83,0.063]
[1743487954860,0.03,125.84,125.83,18.85481043]
[1743487955046,0.03,125.84,125.83,26.928072]
[1743487956044,0.03,125.84,125.83,34.875272]
[1743487956857,0.03,125.84,125.83,54.875272]
[1743487976659,0.03,125.84,125.83,61.635272]
[1743487983868,0.03,125.89,125.88,20.28432314]
[1743487984067,0.03,125.89,125.88,53.478772]
[1743487986019,0.03,125.89,125.88,61.422772]
[1743487992021,0.03,125.89,125.88,290.402772]
[1743487994805,7.4626694,125.94,125.91,20.0]
[1743487995012,7.4626694,125.94,125.93,38.79181043]
[1743487997213,7.4926694,125.94,125.93,38.79181043]
[1743487997714,0.03,125.94,125.93,38.79181043]
[1743487998592,7.4926694,125.94,125.93,38.79181043]
[1743488005124,7.4926694,125.94,125.93,38.933972]
[1743488007133,7.4926694,125.94,125.93,46.874872]
[1743488008231,7.4926694,125.94,125.93,38.933972]
[1743488009836,0.03,125.94,125.93,38.933972]
[1743488010429,0.03,125.94,125.93,46.874872]
[1743488015537,7.4926694,125.94,125.93,46.874872]
[1743488016829,0.03,125.94,125.93,46.874872]
[1743488026045,7.4926694,125.94,125.93,38.933972]
[1743488026244,7.4926694,125.94,125.93,46.874872]
[1743488026572,0.03,125.94,125.93,46.874872]
[1743488028329,7.4926694,125.94,125.93,46.874872]
[1743488028530,7.4926694,125.94,125.93,0.14216157]
[1743488028732,7.4926694,125.94,125.91,0.28432314]
[1743488028733,37.343347,125.94,125.91,0.28432314]
[1743488028931,7.4626694,125.92,125.9,228.9]
[1743488029123,7.4626694,125.91,125.9,228.9]
[1743488029320,7.4626694,125.91,125.9,6.90216157]
[1743488029525,7.4626694,125.91,125.9,25.55181043]
[1743488030142,15.4047694,125.91,125.9,25.55181043]
[1743488032526,15.4047694,125.91,125.9,18.79181043]
[1743488032732,15.4047694,125.91,125.9,25.55181043]
[1743488033749,15.4047694,125.91,125.89,0.063]
[1743488033947,9.0854694,125.9,125.89,6.823]
[1743488034446,9.0854694,125.9,125.89,0.063]
[1743488037448,17.0282694,125.9,125.89,0.063]
[1743488037642,7.9409,125.93,125.89,18.85481043]
[1743488037948,7.4626694,125.9,125.89,18.996972]
[1743488038122,7.4626694,125.9,125.89,18.85481043]
[1743488038328,7.4626694,125.9,125.89,0.063]
[1743488040027,7.4626694,125.9,125.89,6.823]
[1743488043373,7.4626694,125.9,125.89,25.61481043]
[1743488043730,7.4626694,125.9,125.89,33.55821043]
[1743488044659,7.4626694,125.9,125.89,25.61481043]
[1743488045795,7.4626694,125.9,125.89,33.55821043]
[1743488046367,7.4626694,125.9,125.89,33.700372]
[1743488047142,7.4626694,125.91,125.9,0.14216157]
[1743488048283,7.4626694,125.91,125.9,8.08496157]
[1743488053176,7.4626694,125.91,125.9,46.876772]
[1743488053380,7.4626694,125.92,125.91,0.14216157]
[1743488053584,7.4626694,125.92,125.91,18.79181043]
[1743488053879,7.4626694,125.92,125.91,26.73391043]
[1743488056467,7.4626694,125.93,125.92,0.14216157]
[1743488056773,7.4626694,125.93,125.92,38.933972]
[1743488058249,7.4626694,125.93,125.92,46.875472]
[1743488059098,7.4626694,125.93,125.92,18.79181043]
[1743488059267,15.4035694,125.93,125.92,25.55181043]
[1743488059973,7.4626694,125.93,125.92,25.55181043]
[1743488060875,15.4035694,125.93,125.92,6.76]
[1743488061274,7.4626694,125.93,125.92,6.76]
[1743488062688,7.4626694,125.93,125.92,6.90216157]
[1743488063767,7.4626694,125.93,125.92,25.55181043]
[1743488064867,7.4626694,125.93,125.92,33.635472]
[1743488065691,7.4626694,125.93,125.92,25.693972]
[1743488066380,7.4926694,125.93,125.92,25.693972]
[1743488067471,15.4335694,125.93,125.92,6.76]
[1743488072088,15.4335694,125.93,125.9,0.28432314]
[1743488072302,7.9709,125.93,125.92,6.76]
[1743488072594,15.4335694,125.93,125.92,6.76]
[1743488074490,7.4926694,125.93,125.92,6.76]
[1743488075881,7.4926694,125.93,125.92,25.55181043]
[1743488076697,7.4926694,125.93,125.92,33.49331043]
[1743488077697,7.4926694,125.93,125.92,25.55181043]
[1743488077900,7.4926694,125.93,125.92,53.635472]
[1743488080482,7.4926694,125.93,125.92,25.55181043]
[1743488080685,7.4926694,125.93,125.92,33.635472]
[1743488081703,0.03,125.93,125.92,33.635472]
[1743488081887,0.03,125.93,125.92,53.635472]
[1743488096907,0.0001,125.93,125.92,53.635472]
[1743488097108,0.03,125.97,125.96,20.28432314]
[1743488097319,0.03,125.97,125.96,27.04432314]
[1743488097495,0.03,125.97,125.96,53.632972]
[1743488099717,0.03,125.97,125.96,45.693972]
[1743488100709,7.4926694,125.97,125.96,45.693972]
[1743488101808,7.4926694,125.97,125.96,25.693972]
[1743488105019,15.4309694,125.97,125.96,25.693972]
[1743488107025,15.4309694,125.97,125.96,6.76]
[1743488107211,15.4309694,125.97,125.93,18.933972]
[1743488107415,7.4626694,125.94,125.93,18.933972]
[1743488107617,7.4626694,125.94,125.93,25.693972]
[1743488108529,15.4028694,125.94,125.93,25.693972]
[1743488110132,15.4028694,125.94,125.91,18.933972]
[1743488110337,7.9402,125.94,125.93,0.14216157]
[1743488111526,15.4028694,125.94,125.93,0.14216157]
[1743488112338,7.4626694,125.94,125.93,0.14216157]
[1743488114004,7.4626694,125.94,125.93,18.933972]
[1743488114204,7.4626694,125.95,125.93,18.933972]
[1743488114430,7.4626694,125.95,125.94,38.79181043]
[1743488117510,7.4626694,125.95,125.94,18.79181043]
[1743488118822,7.4626694,125.95,125.94,38.79181043]
[1743488123751,7.4626694,125.95,125.94,18.79181043]
[1743488124436,7.4626694,125.95,125.94,18.933972]
[1743488125019,7.4626694,125.95,125.94,18.996972]
[1743488125350,7.4926694,125.95,125.94,18.996972]
[1743488125727,0.03,125.95,125.94,46.937172]
[1743488126671,0.03,125.95,125.94,48.586972]
[1743488131262,0.03,125.97,125.96,20.28432314]
[1743488131563,0.03,125.97,125.96,45.693972]
[1743488131744,0.03,125.97,125.96,53.632972]
[1743488132130,0.03,125.97,125.96,60.298472]
[1743488132735,0.03,125.98,125.97,18.933972]
[1743488133357,0.03,125.98,125.97,26.872272]
[1743488137169,0.03,125.99,125.98,38.933972]
[1743488137869,0.03,126.04,126.01,38.933972]
[1743488137870,7.4926694,126.04,126.01,38.933972]
[1743488138173,7.4926694,126.04,126.01,45.673972]
[1743488138872,7.4926694,126.04,126.01,53.609772]
[1743488139560,0.03,126.04,126.01,53.609772]
[1743488140566,7.4926694,126.04,126.01,53.609772]
[1743488140867,7.4626694,126.03,126.01,53.609772]
[1743488141054,7.4926694,126.04,126.01,53.609772]
[1743488142070,0.03,126.04,126.01,53.609772]
[1743488142771,0.0001,126.02,126.01,55.19611092]
[1743488143183,0.03,126.04,126.03,40.0]
[1743488143396,0.03,126.05,126.04,20.503472]
[1743488143588,0.03,126.06,126.05,38.933972]
[1743488143767,0.03,126.06,126.05,45.733972]
[1743488143965,0.03,126.06,126.05,53.667272]
[1743488144385,0.03,126.06,126.05,55.25298703]
[1743488144892,0.03,126.08,126.07,20.28432314]
[1743488145193,0.03,126.08,126.07,38.933972]
[1743488145567,7.4926694,126.08,126.07,38.933972]
[1743488145970,7.4926694,126.08,126.07,46.866072]
[1743488146686,7.4926694,126.08,126.07,38.933972]
[1743488148090,7.4926694,126.08,126.07,46.866072]
[1743488148586,7.4926694,126.08,126.07,38.933972]
[1743488150008,7.4926694,126.08,126.07,45.733972]
[1743488154189,7.4926694,126.08,126.07,45.59181043]
[1743488154399,15.4240694,126.08,126.07,18.933972]
[1743488157782,7.4926694,126.08,126.07,18.933972]
[1743488158780,7.4926694,126.08,126.06,6.8]
[1743488158987,38.872447,126.07,126.04,0.14216157]
[1743488159170,7.4626694,126.05,126.04,0.14216157]
[1743488164306,7.4626694,126.05,126.04,38.933972]
[1743488165401,7.4626694,126.05,126.04,46.867872]
[1743488166116,0.03,126.08,126.06,20.14216157]
[1743488166309,7.4626694,126.07,126.06,38.933972]
[1743488168730,0.03,126.08,126.07,18.933972]
[1743488169020,0.03,126.08,126.07,25.733972]
[1743488170109,0.03,126.08,126.07,33.666072]
[1743488170720,7.4926694,126.08,126.07,33.666072]
[1743488170932,7.4926694,126.08,126.07,25.733972]
[1743488176344,15.4240694,126.08,126.04,20.063]
[1743488176625,15.4240694,126.08,126.07,0.14216157]
[1743488176626,7.9614,126.08,126.07,0.14216157]
[1743488177409,7.9614,126.08,126.07,18.933972]
[1743488177627,15.4240694,126.08,126.07,18.933972]
[1743488177831,7.4926694,126.08,126.07,18.933972]
[1743488178034,15.4240694,126.08,126.07,18.933972]
[1743488179037,7.4926694,126.08,126.07,18.933972]
[1743488180743,0.03,126.08,126.07,26.866072]
[1743488182119,0.0001,126.09,126.08,38.933972]
[1743488182317,0.03,126.1,126.09,18.933972]
[1743488182818,0.03,126.1,126.09,26.864772]
[1743488183116,0.03,126.11,126.1,20.0]
[1743488183321,0.03,126.11,126.1,45.733972]
[1743488183820,0.03,126.15,126.12,20.28432314]
[1743488184423,0.03,126.15,126.12,38.933972]
[1743488185527,7.4926694,126.15,126.12,38.933972]
[1743488185728,11.80853685,126.15,126.12,38.933972]
[1743488188018,11.77853685,126.14,126.12,38.933972]
[1743488189327,11.77853685,126.14,126.12,45.733972]
[1743488190321,0.03,126.15,126.12,45.733972]
[1743488190547,11.80853685,126.13,126.12,38.933972]
[1743488190749,11.80853685,126.13,126.12,45.733972]
[1743488191451,0.03,126.13,126.12,45.733972]
[1743488193948,11.80853685,126.13,126.12,45.733972]
[1743488198146,11.80853685,126.13,126.12,45.796972]
[1743488200649,19.73683685,126.13,126.12,18.996972]
[1743488201955,31.5153737,126.13,126.12,0.20516157]
[1743488203759,31.5153737,126.13,126.12,0.063]
[1743488204642,20.0,126.11,126.1,0.14216157]
[1743488204845,31.77853685,126.11,126.1,0.14216157]
[1743488205756,35.47739867,126.11,126.1,0.14216157]
[1743488206358,35.47739867,126.11,126.07,18.79181043]
[1743488206660,29.4944,126.11,126.08,6.96216157]
[1743488207268,29.4944,126.11,126.08,0.14216157]
[1743488207565,49.3183,126.11,126.08,0.14216157]
[1743488207767,7.54789867,126.09,126.08,0.14216157]
[1743488209460,15.47869867,126.09,126.08,0.14216157]
[1743488209843,15.47869867,126.09,126.08,0.20516157]
[1743488213360,0.03,126.12,126.1,0.14216157]
[1743488213670,0.03,126.12,126.11,25.59181043]
[1743488214643,7.57789867,126.12,126.11,25.59181043]
[1743488215166,7.57789867,126.12,126.11,25.733972]
[1743488220167,15.50679867,126.12,126.11,25.733972]
[1743488220673,7.57789867,126.12,126.11,25.733972]
[1743488224882,0.03,126.12,126.11,33.663472]
[1743488226179,0.03,126.12,126.11,41.798272]
[1743488227682,0.03,126.13,126.12,38.933972]
[1743488229058,0.03,126.13,126.12,46.862872]
[1743488247083,0.03,126.15,126.14,38.933972]
[1743488249079,0.03,126.15,126.14,46.861572]
[1743488251490,0.03,126.16,126.15,18.933972]
[1743488251696,0.03,126.16,126.15,25.773972]
[1743488253302,0.03,126.16,126.15,33.700972]
[1743488254807,0.03,126.16,126.15,25.773972]
[1743488255594,0.03,126.16,126.15,18.933972]
[1743488255907,0.03,126.16,126.15,25.773972]
[1743488260296,0.03,126.16,126.15,33.700972]
[1743488265630,7.57789867,126.16,126.15,25.773972]
[1743488266532,15.50429867,126.16,126.15,25.773972]
[1743488267592,15.50429867,126.16,126.15,25.836972]
[1743488277130,7.57789867,126.16,126.15,25.836972]
[1743488279514,15.50429867,126.16,126.15,25.836972]
[1743488279709,7.57789867,126.16,126.15,25.836972]
[1743488279914,15.50429867,126.16,126.15,25.836972]
[1743488280122,15.50429867,126.16,126.15,25.67481043]
[1743488282031,15.50429867,126.16,126.15,18.85481043]
[1743488282232,15.50429867,126.16,126.15,25.67481043]
[1743488286934,7.57789867,126.16,126.15,45.816972]
[1743488287133,0.03,126.16,126.15,53.743972]
[1743488288343,0.03,126.16,126.15,45.816972]
[1743488289844,7.57789867,126.16,126.15,45.816972]
[1743488290524,15.50429867,126.16,126.15,45.816972]
[1743488290714,15.50429867,126.16,126.15,25.816972]
[1743488293020,15.50429867,126.16,126.15,0.063]
[1743488295023,15.50429867,126.16,126.15,18.996972]
[1743488295531,15.50429867,126.16,126.15,7.12732314]
[1743488298145,35.32039867,126.16,126.12,0.063]
[1743488298333,7.54789867,126.13,126.12,7.12732314]
[1743488298532,7.54789867,126.13,126.12,0.34732314]
[1743488298734,7.54789867,126.13,126.12,25.796972]
[1743488300430,15.47619867,126.13,126.12,25.796972]
[1743488300737,15.47619867,126.13,126.12,18.996972]
[1743488300937,15.47619867,126.13,126.12,25.796972]
[1743488307063,15.47619867,126.13,126.12,18.996972]
[1743488308759,7.54789867,126.13,126.12,18.996972]
[1743488314552,15.47619867,126.13,126.12,18.996972]
[1743488314944,15.47619867,126.13,126.12,25.776972]
[1743488315946,45.66779335,126.13,126.12,6.98516157]
[1743488317076,45.66779335,126.13,126.08,20.063]
[1743488317077,47.16889335,126.13,126.08,0.063]
[1743488317258,7.54789867,126.09,126.08,0.063]
[1743488319959,15.47869867,126.09,126.08,0.063]
[1743488322578,15.47869867,126.09,126.08,0.20516157]
[1743488334796,15.47869867,126.09,126.08,0.063]
[1743488335465,37.73949335,126.07,126.06,0.20516157]
[1743488336389,45.67159335,126.07,126.06,0.20516157]
[1743488338395,15.47999867,126.07,126.06,0.20516157]
[1743488347514,7.54789867,126.07,126.06,18.996972]
[1743488348396,7.54789867,126.07,126.06,0.34732314]
[1743488348911,7.54789867,126.07,126.06,20.34732314]
[1743488349097,7.54789867,126.08,126.06,38.996972]
[1743488350821,7.54789867,126.07,126.06,38.996972]
[1743488352018,7.54789867,126.07,126.06,18.996972]
[1743488354517,7.54789867,126.07,126.06,38.996972]
[1743488364479,7.54789867,126.07,126.06,18.996972]
[1743488364614,7.54789867,126.07,126.06,25.756972]
[1743488378850,7.54789867,126.07,126.06,33.689672]
[1743488381453,7.54789867,126.07,126.06,25.756972]
[1743488384762,7.54789867,126.07,126.06,33.689672]
[1743488386237,7.54789867,126.07,126.06,25.756972]
[1743488388347,0.03,126.08,126.06,33.689672]
[1743488388668,0.03,126.08,126.07,18.933972]
[1743488390376,0.03,126.08,126.07,26.866072]
[1743488400048,7.57789867,126.08,126.07,26.866072]
[1743488400268,0.03,126.08,126.07,26.866072]
[1743488407575,0.03,126.08,126.07,18.933972]
[1743488408351,7.57789867,126.08,126.07,0.28432314]
[1743488408559,7.57789867,126.08,126.07,7.02432314]
[1743488408770,7.57789867,126.08,126.07,25.673972]
[1743488409181,7.57789867,126.08,126.07,7.02432314]
[1743488409980,7.57789867,126.08,126.07,25.673972]
[1743488410672,15.50929867,126.08,126.07,25.673972]
[1743488417389,15.50929867,126.08,126.07,6.88216157]
[1743488417980,15.50929867,126.08,126.06,0.063]
[1743488418167,7.54789867,126.07,126.06,0.063]
[1743488421177,7.54789867,126.07,126.06,6.94516157]
[1743488426399,7.54789867,126.07,126.06,25.736972]
[1743488432083,0.03,126.08,126.07,18.933972]
[1743488432277,7.57789867,126.08,126.07,18.933972]
[1743488433097,0.03,126.08,126.07,18.933972]
[1743488433274,0.03,126.08,126.07,26.866072]
[1743488433592,0.03,126.08,126.07,18.933972]
[1743488437202,7.57789867,126.08,126.07,18.933972]
[1743488437399,0.03,126.08,126.07,18.933972]
[1743488439799,0.03,126.08,126.07,26.866072]
[1743488447800,7.57789867,126.08,126.07,18.933972]
[1743488450204,15.50929867,126.08,126.07,18.933972]
[1743488450796,15.50929867,126.08,126.07,25.673972]
[1743488460117,45.70089335,126.08,126.06,0.063]
[1743488460327,37.73949335,126.07,126.06,0.063]
[1743488461626,7.54789867,126.07,126.06,0.063]
[1743488462324,15.47999867,126.07,126.06,0.063]
[1743488463298,15.47999867,126.07,126.06,18.85481043]
[1743488463498,7.9617,126.08,126.07,0.14216157]
[1743488463810,0.03,126.08,126.07,0.14216157]
[1743488465124,0.03,126.08,126.07,26.866072]
[1743488465617,0.03,126.08,126.07,18.933972]
[1743488472520,0.03,126.08,126.07,26.866072]
[1743488472932,0.03,126.08,126.07,18.933972]
[1743488475935,7.57789867,126.08,126.07,18.933972]
[1743488478415,15.50929867,126.08,126.07,18.933972]
[1743488486527,15.50929867,126.08,126.06,0.063]
[1743488486843,7.9614,126.08,126.07,0.14216157]
[1743488487652,0.03,126.08,126.07,0.14216157]
[1743488487939,7.57789867,126.08,126.07,0.14216157]
[1743488489743,15.50929867,126.08,126.07,0.14216157]
[1743488490550,15.50929867,126.08,126.06,6.803]